Cogmind - Beta 16.1 @@@ ROGUE MODE // 2026.04.03 @ 10:11:51 Player: Foongus0298 Result: Destroyed by P-80 Master with Gamma Rifle Performance ------------- Evolutions (8) 4000 Regions Visited (13) 2600 Robots Destroyed (76) 380 Value Destroyed (3106) 3106 Prototype IDs (24) 480 Alien Tech Used (0) 0 Bonus (198) 198 TOTAL SCORE: 10764 Bonus ------- High Alert Combat Kills 198 Cogmind --------- Core Integrity 0/1450 Matter 4/300 Energy 42/100 System Corruption 65% Temperature Hot (290) Movement Core (50) Location -2/Research Parts ------- > --- POWER (3) -------- (None) > --- PROPULSION (6) --- Gyrokinetic Inverter > --- UTILITY (10) ----- Advanced Signal Interpreter Advanced Target Analyzer Advanced Target Analyzer Advanced Target Analyzer > --- WEAPON (4) ------- (None) > --- INVENTORY (5) ---- Light Quantum Reactor Phase Gun Compact HERF Cannon Heavy Machine Gun Fusion Bomb Launcher Peak State ------------ > --- POWER ------------ Neutrino Core Light Antimatter Reactor > --- PROPULSION ------- Experimental Flexi-carbon Leg Experimental Flexi-carbon Leg Experimental Flexi-carbon Leg Experimental Flexi-carbon Leg Experimental Flexi-carbon Leg Experimental Flexi-carbon Leg > --- UTILITY ---------- Power Amplifier Advanced Cryofiber Web Improved Energy Well Advanced Energy Well Advanced Visual Processing Unit Advanced Signal Interpreter Advanced Melee Analysis Suite Experimental ECM Suite Hacking Suite System Shield > --- WEAPON ----------- Cooled Plasma Rifle Potential Cannon > --- INVENTORY -------- Experimental Flexi-carbon Leg High-density Centrium Wheel High-density Centrium Wheel Compact HERF Cannon Heavy Machine Gun [Rating: 145] Favorites ----------- Power Light Ion Engine Engine Light Ion Engine Power Core Light Nuclear Core Reactor Light Antimatter Reactor Propulsion Light Treads Treads Light Treads Leg Experimental Flexi-carbon Leg Wheel High-density Centrium Wheel Hover Unit Linear Gravjet Flight Unit Improved VTOL Module Utility Hacking Suite Device Advanced Cryofiber Web Storage Small Storage Unit Processor Advanced Target Analyzer Hackware Hacking Suite Protection Medium Armor Plating Weapon Medium Laser Energy Gun Medium Laser Energy Cannon Potential Cannon Ballistic Gun Light Assault Rifle Ballistic Cannon Assault Cannon Launcher Rocket Launcher Impact Weapon Makeshift Hammer Slashing Weapon Molecular Scythe Build | -11 -10 -10 -9 -8 -7 -6 -5 -4 -4 -4 -3 -3 -2 ------- Run | Yrd Mat Min Mat Mat Fac Fac Fac Fac Upp Upp Res Tes Res Slots Evolved 16 | . . . 2 2 2 2 2 2 . . 2 . 2 Power 2 | . . . . . 1 . . . . . . . 1 Propulsion 4 | . . . 1 1 . 1 . 1 . . . . . Utility 8 | . . . 1 1 1 1 1 1 . . 2 . . Weapon 2 | . . . . . . . 1 . . . . . 1 Parts Attached 166 | 7 2 . 11 16 4 6 10 9 4 . 13 36 48 Power 29 | 2 . . 2 4 . 2 1 2 1 . 1 5 9 Engine 10 | 2 . . 2 3 . . . 1 . . . 1 1 Core 7 | . . . . 1 . 2 1 . 1 . . 2 . Reactor 12 | . . . . . . . . 1 . . 1 2 8 Propulsion 55 | 2 . . 4 5 1 . 3 3 . . 5 16 16 Treads 4 | 2 . . . . . . . . . . . . 2 Leg 12 | . . . . . . . . . . . . 6 6 Wheel 6 | . . . . . . . . . . . . 2 4 Hover 9 | . . . . . . . 2 1 . . . 2 4 Flight 24 | . . . 4 5 1 . 1 2 . . 5 6 . Utility 46 | 1 1 . 2 4 1 3 4 3 1 . 6 10 10 Device 26 | . . . 2 . 1 2 2 1 1 . 5 5 7 Storage 4 | 1 . . . . . . . . . . . 3 . Processor 10 | . . . . 2 . . 1 1 . . 1 2 3 Hackware 4 | . . . . 1 . 1 1 1 . . . . . Protection 2 | . 1 . . 1 . . . . . . . . . Artifact . | . . . . . . . . . . . . . . Weapon 36 | 2 1 . 3 3 2 1 2 1 2 . 1 5 13 Energy Gun 18 | 2 . . 1 . 1 1 2 1 . . 1 2 7 Energy Cannon 3 | . . . . . . . . . 1 . . 1 1 Ballistic Gun 10 | . . . 2 2 1 . . . . . . 1 4 Ballistic Cannon 1 | . . . . 1 . . . . . . . . . Launcher 2 | . 1 . . . . . . . . . . . 1 Special Weapon . | . . . . . . . . . . . . . . Impact Weapon 1 | . . . . . . . . . 1 . . . . Slashing Weapon 1 | . . . . . . . . . . . . 1 . Piercing Weapon . | . . . . . . . . . . . . . . Special Melee Weapon . | . . . . . . . . . . . . . . Unidentified Prototypes 22 | . . . . 2 3 1 . 2 . . 2 11 1 Corrupted Parts 7 | . . . . . . . . . . . 1 2 4 System Corruption 30 | . . . . . . . . . . . 2 10 18 Parts Lost 86 | . . . 2 6 . 6 4 1 2 . 5 24 36 Power 19 | . . . . 1 . 2 1 . 1 . 1 6 7 Propulsion 24 | . . . 1 1 . 2 . 1 1 . 1 6 11 Utility 24 | . . . 1 2 . 2 1 . . . 2 9 7 Weapon 19 | . . . . 2 . . 2 . . . 1 3 11 Highest Loss Streak 13 | . . . 1 6 . 4 2 1 2 . 5 8 13 To Critical Strikes 2 | . . . . 1 . . . 1 . . . . . Average Backups 4 | 3 6 7 5 4 4 4 3 3 4 5 3 3 4 Power . | . 1 1 1 1 . 1 . . . 1 1 . . Propulsion 1 | 1 4 3 1 . 1 . . 1 . . . 1 . Utility 1 | . . . . 2 1 1 2 2 2 3 2 . . Weapon 1 | . 1 2 1 1 1 1 . . . 1 . 1 2 Tool/Special . | . . . . . . . . . . . . . . Unused Backups 9 | . . 2 2 3 1 1 . . . . . . . Power . | . . . . . . . . . . . . . . Propulsion 6 | . . 2 2 2 . . . . . . . . . Utility 3 | . . . . 1 1 1 . . . . . . . Weapon . | . . . . . . . . . . . . . . Tool/Special . | . . . . . . . . . . . . . . Average Slot Usage (%) 78 | . 95 100 78 92 99 91 52 70 95 94 83 66 51 Engine 5 | . 14 14 11 7 7 1 . 2 2 . . . 1 Core 1 | . . . . . 7 8 3 . . . . 2 . Reactor 2 | . . . . . . . . . 5 5 4 3 5 Treads 6 | . 28 28 11 . . . . . . . . . . Leg 3 | . . . . . . . . . . . . 9 6 Wheel 1 | . . . . . . . . . . . . 2 3 Hover 1 | . . . . . . . 1 11 13 10 2 . 2 Flight 10 | . . . 16 34 30 28 15 15 17 21 24 7 . Device 5 | . . . 1 15 6 10 2 2 9 10 9 8 6 Storage 4 | . 14 14 5 . . . . . . . . 4 . Processor 7 | . . . . 8 15 12 5 5 10 10 11 10 12 Hackware 5 | . . . . . 7 12 11 19 21 21 15 7 . Protection 4 | . 9 14 10 7 7 2 . . . . . . . Energy Gun 7 | . 18 14 8 . 5 9 10 10 10 10 6 2 5 Ballistic Gun 2 | . . . 9 15 6 3 . . . . . . 1 Launcher 3 | . 9 14 4 . . . . . . . . . . Peak Build Rating 145 | 6 9 9 10 31 45 57 49 83 93 86 111 145 140 Average Rating 54 | 4 8 9 7 19 39 51 37 63 89 86 89 92 87 On Entrance 42 | . 6 9 9 9 31 45 40 49 83 86 86 111 37 Avg Prop Armor Cover (%) 8 | . . . 14 . . . 15 11 6 11 7 6 9 Naked Turns 22 | . . . . . . . . . . . . 22 . Heaviest Build 81 | 12 21 21 21 15 19 24 16 24 35 27 35 67 81 Greatest Support 140 | 40 40 40 40 20 21 26 15 27 36 30 38 138 140 Greatest Overweight (x) 5 | . . . 1 . 5 1 1 1 . . 1 4 5 Average Overweight (x) . | . . . . . . . . . . . . . . Largest Inventory Capacity 8 | 8 8 8 8 5 5 5 5 5 5 5 5 5 5 Average Capacity 5 | 7 8 8 6 5 5 5 5 5 5 5 5 5 5 Most Carried 8 | 6 7 8 7 5 5 5 5 5 5 5 5 5 5 Average Carried 4 | 3 6 7 5 4 4 4 3 3 4 5 3 3 4 Final Capacity 8 | 8 8 8 5 5 5 5 5 5 5 5 5 5 5 Final Carried 7 | 6 7 7 5 5 5 5 3 5 5 5 5 5 5 Class Distribution -------------------- 41% | Mutant 17% | Hacker-Sprinter 7% | Sprinter 6% | Scavenger-Mutant 4% | Hacker-Mutant 3% | Hacker-Skirmisher 3% | Hacker-Scout 3% | Scavenger-Sprinter 3% | Scavenger-Gunner Dominant Class ---------------- Mutant | -10/Materials Mutant | -10/Mines Mutant | -9/Materials Sprinter | -8/Materials Sprinter | -7/Factory Hacker-Sprinter | -6/Factory Hacker-Sprinter | -5/Factory Hacker-Sprinter | -4/Factory Hacker-Sprinter | -4/Upper Caves Hacker-Sprinter | -4/Upper Caves Hacker-Sprinter | -3/Research Mutant | -3/Testing Mutant | -2/Research Resources | -11 -10 -10 -9 -8 -7 -6 -5 -4 -4 -4 -3 -3 -2 ----------- Run | Yrd Mat Min Mat Mat Fac Fac Fac Fac Upp Upp Res Tes Res Matter Collected 2304 | 200 . 164 99 117 55 266 56 66 119 . 50 587 525 Remotely . | . . . . . . . . . . . . . . Salvage Created 2902 | . . 165 99 101 55 201 122 66 . . 174 890 1029 Parts 157 | . . 11 10 12 2 11 3 4 . . 7 48 49 Haulers Intercepted 2 | . . . . . 1 . . . . . . 1 . Recyclers Shooed 7 | . . . . . 1 . 2 . . . . 1 3 Parts Field Recycled . | . . . . . . . . . . . . . . Retrieved Matter . | . . . . . . . . . . . . . . Parts Self-Destructed . | . . . . . . . . . . . . . . Prevented . | . . . . . . . . . . . . . . Parts Restored . | . . . . . . . . . . . . . . Kills | -11 -10 -10 -9 -8 -7 -6 -5 -4 -4 -4 -3 -3 -2 ------- Run | Yrd Mat Min Mat Mat Fac Fac Fac Fac Upp Upp Res Tes Res Combat Hostiles Destroyed 58 | . . 8 7 7 . 1 3 . . . 5 17 10 Melee 10 | . . . . . . . . . . . 1 7 2 Guns 26 | . . 1 7 7 . 1 3 . . . . 1 6 Cannons 4 | . . . . . . . . . . . 1 3 . AOE 10 | . . 7 . . . . . . . . . 3 . Classes Destroyed 12 | . . 3 . . 1 2 . 2 . . . 3 1 Worker 2 | . . . . . . 1 . . . . . . 1 Builder 7 | . . . . . . . . . . . . 4 3 Hauler 2 | . . . . . 1 . . . . . . 1 . Recycler 3 | . . 1 . . . 1 . . . . . . 1 Operator 2 | . . . . . . . . 1 . . . 1 . Watcher 1 | . . . . . . . . 1 . . . . . Swarmer 31 | . . 6 7 7 . . 1 . . . 5 5 . Grunt 8 | . . 2 . . . . 1 . . . . 1 4 Researcher 1 | . . . . . . . . . . . . 1 . Sentry 1 | . . . . . . . . . . . . . 1 Hunter 6 | . . . . . . . . . . . . 6 . Programmer 12 | . . . . . . 1 1 . . . . 5 5 Best Kill Streak 7 | . . 3 7 7 1 1 1 1 . . 5 6 4 Combat Bots Only 7 | . . 3 7 7 . 1 1 . . . 5 5 3 Max Kills in Single Turn 3 | . . 2 1 1 1 1 1 1 . . 1 3 2 Gunslinging . | . . . . . . . . . . . . . . Exploded 2 | . . 2 . . . . . . . . . 1 . Melee 1 | . . . . . . . . . . . 1 1 1 Uniques/NPCs Destroyed . | . . . . . . . . . . . . . . Combat | -11 -10 -10 -9 -8 -7 -6 -5 -4 -4 -4 -3 -3 -2 -------- Run | Yrd Mat Min Mat Mat Fac Fac Fac Fac Upp Upp Res Tes Res Hostile Shots Fired 1047 | . . 17 33 118 18 59 43 9 27 . 27 317 379 Missed 396 | . . 6 9 63 4 36 20 4 12 . 9 121 112 Hits 651 | . . 11 24 55 14 23 23 5 15 . 18 196 267 Melee 1 | . . . . 1 . . . . . . . . . Projectile 650 | . . 11 24 54 14 23 23 5 15 . 18 196 267 AOE 2 | . . . . . . . 2 . . . . . . Critical Strikes 26 | . . . . 2 . 1 3 1 . . . 1 18 Part Disruptions 4 | . . . . . . . . . . . . 1 3 Damage Taken 13440 | . . 193 195 620 151 291 609 122 269 . 406 3989 6595 Core 3017 | . . 20 25 132 26 60 152 47 54 . 71 962 1468 Absorbed by Shields 27 | . . . . . 27 . . . . . . . . Regen/Repaired (Parts) 157 | . . . . . . 21 49 . . . 87 . . Core Remaining (%) 82 | 100 . 92 93 76 96 92 84 . . 91 . 20 . Volleys Fired 187 | . 1 12 27 23 7 9 14 5 1 . 3 26 59 Largest 4 | . 2 2 2 2 2 2 2 2 3 . 2 2 4 Hottest 238 | . 83 83 90 40 85 90 130 150 238 . 173 224 238 Shots Fired 339 | . 2 18 47 32 14 18 27 10 3 . 6 44 118 Gun 309 | . 1 12 47 32 14 18 27 10 2 . 4 26 116 Cannon 21 | . . . . . . . . . 1 . 2 18 . Launcher 9 | . 1 6 . . . . . . . . . . 2 Special . | . . . . . . . . . . . . . . Kinetic 135 | . . . 22 32 7 6 . . . . . 4 64 Thermal 165 | . 1 12 25 . 7 12 27 10 2 . 4 36 29 Explosive 9 | . 1 6 . . . . . . . . . . 2 Electromagnetic 30 | . . . . . . . . . 1 . 2 4 23 Robot Hit Streak 11 | . . 3 5 5 6 7 9 6 . . 2 7 11 Robot Miss Streak 5 | . . 2 3 2 1 3 3 2 . . 4 5 4 Penetration Max 1 | . . . . . . . . . . . . . 1 Secondary Targets 5 | . . . . 1 . . 1 . . . . 1 2 Max Gunslinging Chain 1 | . . . . 1 . . 1 . . . . 1 1 Capacitor 7 | . . . . . . . . . . . . . 7 Shots Hit Robots 222 | . . 9 27 23 6 9 21 7 . . 6 37 77 Core Hits 104 | . . 12 10 10 3 4 5 4 . . 2 25 29 Critical Kills 5 | . . . . . . 1 . . . . . 2 2 Critical Parts Destroyed 9 | . . . . . . . . . . . 2 2 5 Critical Strikes 26 | . . . 1 . . 1 . . . . 2 8 14 Burn 6 | . . . 1 . . . . . . . . 3 2 Meltdown 1 | . . . . . . . . . . . . 1 . Destroy 9 | . . . . . . 1 . . . . . . 8 Corrupt 2 | . . . . . . . . . . . . . 2 Smash 5 | . . . . . . . . . . . 2 3 . Sever 3 | . . . . . . . . . . . . 1 2 Melee Attacks 66 | . . . . . . . . . 4 . 9 40 13 Impact 34 | . . . . . . . . . 4 . 9 21 . Slashing 32 | . . . . . . . . . . . . 19 13 Piercing . | . . . . . . . . . . . . . . Sneak Attacks 3 | . . . . . . . . . . . . 1 2 Combat Hostiles . | . . . . . . . . . . . . . . Follow-up Attacks . | . . . . . . . . . . . . . . Damage Inflicted 9989 | . 17 585 280 205 79 210 610 154 . . 210 4829 2810 Guns 4041 | . . 64 280 205 78 208 610 154 . . 18 272 2152 Cannons 1562 | . . . . . . . . . . . 32 1530 . Explosions 2781 | . 17 512 . . . . . . . . . 2045 207 Melee 1576 | . . . . . . . . . . . 160 982 434 Ramming 29 | . . 9 . . 1 2 . . . . . . 17 Kinetic 1825 | . . . 80 205 22 46 . . . . . 63 1409 Thermal 5390 | . . 64 200 . 56 162 610 154 . . 18 3705 421 Explosive 736 | . 17 512 . . . . . . . . . . 207 Electromagnetic 433 | . . . . . . . . . . . 32 79 322 Impact 662 | . . . . . . . . . . . 160 502 . Slashing 914 | . . . . . . . . . . . . 480 434 Piercing . | . . . . . . . . . . . . . . Highest Corruption 65 | . . . . . . . . . . . 6 28 65 Average Corruption 22 | . . . . . . . . . . . 5 16 34 Corruption Purged . | . . . . . . . . . . . . . . Corruption Blocked . | . . . . . . . . . . . . . . Effects 86 | . . . . . . . . . . . 2 42 42 Message Errors 16 | . . . . . . . . . . . . 10 6 Matter Fused 18 | . . . . . . . . . . . 1 11 6 Heat Flow Errors 3 | . . . . . . . . . . . . 2 1 Energy Discharges 5 | . . . . . . . . . . . . 3 2 Parts Rejected 6 | . . . . . . . . . . . . . 6 Parts Fused 1 | . . . . . . . . . . . . 1 . Data Loss (minor) 11 | . . . . . . . . . . . . 6 5 Data Loss (major) 2 | . . . . . . . . . . . . . 2 Misfires 3 | . . . . . . . . . . . . 2 1 Alerts 2 | . . . . . . . . . . . 1 1 . Misdirections 13 | . . . . . . . . . . . . 6 7 Weapon Failures 6 | . . . . . . . . . . . . . 6 Overload Shots 3 | . . . . . 1 . 2 . . . . . . Overflow Damage 1576 | . . 20 . . . . . . . . 100 1392 64 Projectiles 589 | . . . . . . . . . . . . 589 . Explosions 492 | . . 20 . . . . . . . . . 472 . Melee 495 | . . . . . . . . . . . 100 331 64 Knockbacks 3 | . . . . . . . . . . . . 2 1 Impact 3 | . . . . . . . . . . . . 2 1 Kinetic . | . . . . . . . . . . . . . . Secondary . | . . . . . . . . . . . . . . Self-Inflicted Damage 330 | . . 103 . . . 1 . . . . . 136 90 Shots 7 | . . 3 . . . . . . . . . 2 2 Rammed 7 | . . 3 . . 1 2 . . . . . . 1 Targets Rammed 9 | . . 3 . . 1 2 . . . . . . 3 Kicked 2 | . . . . . . . . . . . . . 2 Crushed . | . . . . . . . . . . . . . . Highest Temperature 601 | . 30 126 206 22 51 318 362 400 153 . 79 280 601 Average Temperature 90 | . 18 44 64 8 11 112 125 107 40 . 21 100 128 Received Heat Transfer 1534 | . . 15 6 171 48 42 207 27 . . . 171 847 Effects 10 | . . . . . . 1 . . . . . 1 8 Shutdowns 2 | . . . . . . . . . . . . . 2 Energy Bleed 3 | . . . . . . 1 . . . . . 1 1 Interference 3 | . . . . . . . . . . . . . 3 Damage (minor) 2 | . . . . . . . . . . . . . 2 Siege Activations . | . . . . . . . . . . . . . . Martial Activations . | . . . . . . . . . . . . . . Shielding Activations . | . . . . . . . . . . . . . . Robots Disrupted . | . . . . . . . . . . . . . . Combat Hostiles . | . . . . . . . . . . . . . . Robots Corrupted 6 | . . . . . . . . . . . 3 1 2 Combat Hostiles 6 | . . . . . . . . . . . 3 1 2 Parts Fried 5 | . . . . . . . . . . . 3 . 2 Impact Corruptions 10 | . . . . . . . . . . . 5 5 . Robots Melted 2 | . . . . . . . . . . . . 2 . Combat Hostiles 2 | . . . . . . . . . . . . 2 . Parts Melted 7 | . . 2 3 . . 1 . . . . . . 1 Heat Transferred 6234 | . . 185 643 . 111 259 803 298 . . 50 3293 592 Parts Sabotaged . | . . . . . . . . . . . . . . Parts Stolen . | . . . . . . . . . . . . . . Parts Stripped . | . . . . . . . . . . . . . . Power Chain Reactions . | . . . . . . . . . . . . . . Alert | -11 -10 -10 -9 -8 -7 -6 -5 -4 -4 -4 -3 -3 -2 ------- Run | Yrd Mat Min Mat Mat Fac Fac Fac Fac Upp Upp Res Tes Res Maximum Alert Level 3 | . . . . 1 1 . . . . . . 3 2 Low Security (%) 64 | 100 100 100 100 68 71 100 100 100 . . 100 21 20 Level 1 24 | . . . . 31 28 . . . . . . 39 62 Level 2 7 | . . . . . . . . . . . . 21 16 Level 3 3 | . . . . . . . . . . . . 16 . Level 4 . | . . . . . . . . . . . . . . Level 5 . | . . . . . . . . . . . . . . High Security . | . . . . . . . . . . . . . . Max Security . | . . . . . . . . . . . . . . Peak Influence 811 | . 21 112 120 371 249 138 135 65 . . 77 811 456 Initial 456 | . . . 2 33 168 119 30 60 . . 37 23 456 Average 178 | . 2 35 54 125 167 104 42 47 . . 54 410 275 Influence Increases 3776 | . 21 260 189 541 205 135 227 42 90 . 125 1414 527 Destroy 0b10 Robot/C 1220 | . . 160 140 140 20 40 60 . . . 100 360 200 Destroy 0b10 Robot/NC 85 | . . 5 . . 5 10 . 10 . . . 30 25 Destroy Leader 236 | . . 30 20 20 2 10 20 2 . . 10 62 60 Trap Triggered on 0b10 40 | . . . . 40 . . . . . . . . . Successful Hack 193 | . . . 14 11 28 39 12 . . . . 81 8 Disable Machine 240 | . 15 15 . . 15 15 15 . . . 15 120 30 Anti-Garrison Action 150 | . . . . . . . . . . . . 150 . Destroy Structure 427 | . 6 50 . . . 6 . . . . . 266 99 Partial Spotted 30 | . . . . . 15 . 15 . . . . . . Lose Combat Pursuer 1155 | . . . 15 330 120 15 105 30 90 . . 345 105 Influence Decreases 3557 | . 21 252 116 251 333 314 166 125 62 14 139 645 1119 Entered New Map 903 | . . . 6 48 203 124 34 65 16 14 19 19 355 Time Decay 1812 | . 21 252 90 143 110 130 110 50 46 . 70 386 404 Lost Part 822 | . . . 20 60 . 60 22 10 . . 50 240 360 Lost Ally 20 | . . . . . 20 . . . . . . . . Squads Dispatched 30 | . . . 1 3 2 2 3 3 . . . 9 7 Investigation 9 | . . . . 2 1 1 3 1 . . . 1 . Extermination 5 | . . . . . . . . . . . . 2 3 Reinforcement 9 | . . . 1 1 1 1 . 2 . . . 3 . Assault 3 | . . . . . . . . . . . . 3 . Garrison 4 | . . . . . . . . . . . . . 4 Intercept . | . . . . . . . . . . . . . . Searches Triggered . | . . . . . . . . . . . . . . Construction Impeded 1 | . . . . . . . . . . . . 1 . Haulers Reinforced 1 | . . . . . . . . . . . . 1 . Active Scanning Responses . | . . . . . . . . . . . . . . Cargo Convoy Interrupts . | . . . . . . . . . . . . . . Stealth | -11 -10 -10 -9 -8 -7 -6 -5 -4 -4 -4 -3 -3 -2 --------- Run | Yrd Mat Min Mat Mat Fac Fac Fac Fac Upp Upp Res Tes Res Distress Signals 18 | . . . 1 5 1 1 1 1 . . . 6 2 Communications Jammed . | . . . . . . . . . . . . . . Distress Signals . | . . . . . . . . . . . . . . Times Spotted 209 | . 2 7 15 40 11 7 15 7 7 . 5 62 31 Peak Tracking Total 16 | . 3 3 6 16 11 4 11 5 7 . 5 11 8 Tactical Retreats 34 | . . . 1 9 2 1 2 1 2 . . 9 7 ECM-based Alert Blocks 3 | . . . . . . . . . . . . 3 . Traps | -11 -10 -10 -9 -8 -7 -6 -5 -4 -4 -4 -3 -3 -2 ------- Run | Yrd Mat Min Mat Mat Fac Fac Fac Fac Upp Upp Res Tes Res Traps Triggered 10 | . . . . 1 3 . 2 . . . 1 2 1 Indirectly . | . . . . . . . . . . . . . . Trap Hack Attempts . | . . . . . . . . . . . . . . Triggered . | . . . . . . . . . . . . . . Disarmed . | . . . . . . . . . . . . . . Reprogrammed 5 | . . . . 5 . . . . . . . . . Reused 4 | . . . . 4 . . . . . . . . . Traps Extracted . | . . . . . . . . . . . . . . Installed . | . . . . . . . . . . . . . . Triggered 4 | . . . . 4 . . . . . . . . . Machines | -11 -10 -10 -9 -8 -7 -6 -5 -4 -4 -4 -3 -3 -2 ---------- Run | Yrd Mat Min Mat Mat Fac Fac Fac Fac Upp Upp Res Tes Res Machines Disabled 19 | . 1 1 . . 1 1 1 . . . 1 11 2 Max in Single Turn 2 | . 1 1 . . 1 . 1 . . . 1 2 1 Garrison Access 1 | . . . . . . . . . . . . 1 . Machines Repaired . | . . . . . . . . . . . . . . Machines Dismantled . | . . . . . . . . . . . . . . Machines Sabotaged . | . . . . . . . . . . . . . . Overloaded Fab Kills . | . . . . . . . . . . . . . . Hacking | -11 -10 -10 -9 -8 -7 -6 -5 -4 -4 -4 -3 -3 -2 --------- Run | Yrd Mat Min Mat Mat Fac Fac Fac Fac Upp Upp Res Tes Res Machines Accessed 44 | . 1 . 2 8 5 7 8 2 1 . 2 5 3 Terminals 27 | . 1 . 1 5 4 3 5 2 . . 1 2 3 Fabricators 2 | . . . . . . 1 . . . . . 1 . Repair Stations 5 | . . . 1 1 . 1 1 . . . 1 . . Recycling Units 4 | . . . . 1 . 2 1 . . . . . . Scanalyzers 5 | . . . . 1 1 . 1 . . . . 2 . Garrison Access . | . . . . . . . . . . . . . . Total Hacks 97 | . 1 . 4 20 9 13 18 7 1 . 3 14 7 Successful 47 | . 1 . 3 7 5 9 9 2 1 . 3 5 2 Failed 49 | . . . 1 13 4 4 9 5 . . . 8 5 Catastrophic 7 | . . . . 4 . . . . . . . 1 2 Database Lockouts 1 | . . . . . . . . . . . . 1 . Manual 11 | . . . 1 4 1 3 1 . . . . . 1 Terminals 62 | . 1 . 2 15 7 5 10 7 . . 1 7 7 Fabricators 2 | . . . . . . 1 . . . . . 1 . Repair Stations 9 | . . . 2 1 . 2 2 . . . 2 . . Recycling Units 10 | . . . . 2 . 5 3 . . . . . . Scanalyzers 13 | . . . . 2 2 . 3 . . . . 6 . Garrison Access . | . . . . . . . . . . . . . . Terminal Hacks 23 | . 1 . 2 4 3 1 3 2 1 . 1 3 2 Record 5 | . . . . . . . 1 1 . . . 2 1 Robot Analysis 2 | . 1 . . . . . . . . . . 1 . Open Door 1 | . . . . . . . . . 1 . . . . Open DSF 5 | . . . . . 1 1 1 1 . . 1 . . Branch Access Points 3 | . . . 1 . 1 . 1 . . . . . . Alert Level 3 | . . . . 1 1 . . . . . . . 1 Locate Traps 1 | . . . . 1 . . . . . . . . . Reprogram Traps 1 | . . . . 1 . . . . . . . . . Dispatch Records 1 | . . . 1 . . . . . . . . . . Zone Layout 1 | . . . . 1 . . . . . . . . . Fabricator Hacks 1 | . . . . . . 1 . . . . . . . Build 1 | . . . . . . 1 . . . . . . . Repair Station Hacks 7 | . . . 1 . . 2 2 . . . 2 . . Scan Component 3 | . . . . . . 1 1 . . . 1 . . Repair 3 | . . . . . . 1 1 . . . 1 . . Refit 1 | . . . 1 . . . . . . . . . . Recycling Unit Hacks 9 | . . . . 1 . 5 3 . . . . . . Process 2 | . . . . . . 1 1 . . . . . . Report Inventory 3 | . . . . . . 2 1 . . . . . . Retrieve Matter 4 | . . . . 1 . 2 1 . . . . . . Scanalyzer 7 | . . . . 2 2 . 1 . . . . 2 . Retrieve Study 7 | . . . . 2 2 . 1 . . . . 2 . Garrison Access Hacks . | . . . . . . . . . . . . . . Unauthorized Hacks . | . . . . . . . . . . . . . . Terminals . | . . . . . . . . . . . . . . Fabricators . | . . . . . . . . . . . . . . Repair Stations . | . . . . . . . . . . . . . . Recycling Units . | . . . . . . . . . . . . . . Scanalyzers . | . . . . . . . . . . . . . . Garrison Access . | . . . . . . . . . . . . . . Data Cores Recovered . | . . . . . . . . . . . . . . Used . | . . . . . . . . . . . . . . Hacking Detections 33 | . . . 2 8 2 3 6 2 . . 2 5 3 Full Trace Events 7 | . . . . 3 . 1 2 1 . . . . . Feedback Events . | . . . . . . . . . . . . . . Feedback Blocked . | . . . . . . . . . . . . . . Robot Schematics Acquired 1 | . . . . . . . . . . . . 1 . Robots Built 2 | . . . . . . 2 . . . . . . . Authchips . | . . . . . . . . . . . . . . Time 50 | . . . . . . 50 . . . . . . . Total Robot Build Rating 10 | . . . . . . 10 . . . . . . . Part Schematics Acquired 2 | . . . . . . . . . . . . 2 . Parts Built . | . . . . . . . . . . . . . . Authchips . | . . . . . . . . . . . . . . Time . | . . . . . . . . . . . . . . Total Part Build Rating . | . . . . . . . . . . . . . . Part Studies Acquired 7 | . . . . 2 2 . 1 . . . . 2 . Parts Repaired 3 | . . . . . . 1 1 . . . 1 . . Time 95 | . . . . . . 19 60 . . . 16 . . Parts Recycled . | . . . . . . . . . . . . . . Recycled Matter 14 | . . . . . . 5 9 . . . . . . Retrieved Matter 14 | . . . . . . 5 9 . . . . . . Retrieved Components . | . . . . . . . . . . . . . . Parts Scanalyzed . | . . . . . . . . . . . . . . Part Schematics Acquired . | . . . . . . . . . . . . . . Parts Damaged . | . . . . . . . . . . . . . . Bothacking | -11 -10 -10 -9 -8 -7 -6 -5 -4 -4 -4 -3 -3 -2 ------------ Run | Yrd Mat Min Mat Mat Fac Fac Fac Fac Upp Upp Res Tes Res Used RIF Installer . | . . . . . . . . . . . . . . Robots Hacked . | . . . . . . . . . . . . . . Non-combat . | . . . . . . . . . . . . . . Combat . | . . . . . . . . . . . . . . Robot Hacks Applied . | . . . . . . . . . . . . . . Relay Couplers Released 1 | . . . . . . . . . . . . 1 . Machine Destruction 1 | . . . . . . . . . . . . 1 . Fabnet Peak Effective % . | . . . . . . . . . . . . . . Robots Rewired 2 | . . . . . 1 1 . . . . . . . Allies Hacked . | . . . . . . . . . . . . . . Hacks Repelled . | . . . . . . . . . . . . . . Allies | -11 -10 -10 -9 -8 -7 -6 -5 -4 -4 -4 -3 -3 -2 -------- Run | Yrd Mat Min Mat Mat Fac Fac Fac Fac Upp Upp Res Tes Res Total Allies 4 | . . . . . 1 3 . . . . . . . Largest Group 2 | . . . . . 1 2 . . . . . . . Highest-Rated Group 40 | . . . . . 16 40 . . . . . . . Highest-Rated Ally 34 | . . . . . 16 34 . . . . . . . Total Orders . | . . . . . . . . . . . . . . Ally Attacks 13 | . . . . . 9 4 . . . . . . . Total Damage 342 | . . . . . 121 221 . . . . . . . Kills 3 | . . . . . 1 2 . . . . . . . Allies Corrupted . | . . . . . . . . . . . . . . Allies Melted . | . . . . . . . . . . . . . . Intel | -11 -10 -10 -9 -8 -7 -6 -5 -4 -4 -4 -3 -3 -2 ------- Run | Yrd Mat Min Mat Mat Fac Fac Fac Fac Upp Upp Res Tes Res Active Infowar (turns) 2202 | . . . 20 307 222 267 . 18 330 5 145 603 285 Optics 1101 | . . . . . . . . 18 330 5 145 603 . Sensors 1389 | . . . 20 307 222 267 . . . . 26 262 285 Terrain 55 | . . . . . . . . . . . 55 . . ECM 48 | . . . . . . . . . . . 5 43 . Robot Analysis Total 2 | . 1 . . . . . . . . . . 1 . Derelict Logs Recovered 4 | . . 2 . . . . . . 2 . . . . Drone Launches 2 | . . . . . . . . . . . 2 . . Drone Recoveries . | . . . . . . . . . . . . . . Exploration | -11 -10 -10 -9 -8 -7 -6 -5 -4 -4 -4 -3 -3 -2 ------------- Run | Yrd Mat Min Mat Mat Fac Fac Fac Fac Upp Upp Res Tes Res Turns Passed 4898 | 99 124 941 246 308 224 272 225 100 330 5 145 910 969 Spaces Moved 6357 | 55 74 565 261 662 599 624 477 209 1042 18 302 840 629 Core 167 | 4 . . . . . . . . . . . 50 113 Treads 749 | 51 74 565 45 . . . . . . . . . 14 Legs 439 | . . . . . . . . . . . . 255 184 Wheels 342 | . . . . . . . . . . . . 194 148 Hover 941 | . . . . . . . 1 86 643 . . 41 170 Flight 3719 | . . . 216 662 599 624 476 123 399 18 302 300 . Fastest Speed 22 | 50 160 160 34 27 26 24 29 26 26 26 22 24 50 Average Speed 57 | 152 160 160 56 28 26 27 31 31 29 26 24 73 104 Slowest Speed 300 | 160 160 160 160 34 27 97 99 102 32 26 99 250 300 Overloaded Moves . | . . . . . . . . . . . . . . Propulsion Burnouts . | . . . . . . . . . . . . . . Robots Hopped 85 | . . . 11 17 40 15 . . 2 . . . . Potential Cave-ins . | . . . . . . . . . . . . . . Cave-ins Triggered . | . . . . . . . . . . . . . . Exploration Rate (%) 33 | 4 22 99 29 68 17 21 14 11 92 4 6 63 16 Regions Visited 13 Branch Regions 4 Pre-discovered Areas 1 | . . . . . . . . . 1 . . . . Known Exits Taken 8 | . . . . 1 1 1 1 1 1 1 1 . . Unknown Exits Taken 5 | 1 1 1 1 . . . . . . . . 1 . Scrap Searched 6 | . . 1 . . . . . . 4 1 . . . Spaces Dug 6 | . . . . . . . . . 3 . . 3 . Terrain Destroyed 265 | . 5 67 . . . . . . 3 . . 145 45 Melee 6 | . . . . . . . . . 3 . . 3 . Projectile 11 | . . . . . . . . . . . . 8 3 AOE 248 | . 5 67 . . . . . . . . . 134 42 Terrain Rammed . | . . . . . . . . . . . . . . Walls Destroyed . | . . . . . . . . . . . . . . Machines Disabled . | . . . . . . . . . . . . . . Actions | -11 -10 -10 -9 -8 -7 -6 -5 -4 -4 -4 -3 -3 -2 --------- Run | Yrd Mat Min Mat Mat Fac Fac Fac Fac Upp Upp Res Tes Res Total 7071 | 67 77 583 305 735 612 695 524 229 1053 17 355 1020 799 Wait 163 | . . . . 29 . 49 15 4 . . 16 30 20 Move 6207 | 54 73 564 243 631 539 596 476 208 1037 17 301 839 629 Hop 53 | . . . 6 13 19 13 . . 2 . . . . Pick Up 41 | 6 1 2 4 6 3 4 1 1 1 . 2 8 2 Fast Attach 156 | 6 1 . 5 12 5 4 7 8 3 . 13 40 52 Attach 33 | . . . 2 3 2 3 5 . 3 . 2 7 6 Detach 18 | . . . 1 1 1 2 2 1 2 . 1 3 4 Swap 22 | 1 1 . 6 5 . 3 1 1 . . . 3 1 Drop 82 | . . 2 11 12 6 5 3 1 . . 8 24 10 Fire 187 | . 1 12 27 23 7 9 14 5 1 . 3 26 59 Melee 66 | . . . . . . . . . 4 . 9 40 13 Ram 3 | . . . . . 1 1 . . . . . . 1 Kick 2 | . . . . . . . . . . . . . 2 Crush 3 | . . 3 . . . . . . . . . . . Escape Stasis 26 | . . . . . 26 . . . . . . . . Rewire 9 | . . . . . 3 6 . . . . . . . Trap . | . . . . . . . . . . . . . . Miscellaneous . | . . . . . . . . . . . . . . Route ------- -11/Scrapyard -10/Materials -10/Mines (discovered 3 exits: *Mat x2 / [*Sub]) -9/Materials (discovered 3 exits: *Mat / Min / Sto) -8/Materials -7/Factory (discovered 3 exits: *Fac / Low x2) -6/Factory -5/Factory (discovered 3 exits: *Fac / Upp x2) -4/Factory (discovered 2 exits: *Upp x2) -4/Upper Caves -4/Upper Caves -3/Research -3/Testing -2/Research History --------- Turn | Location | Event 16 | -11/Scrapyard | Discovered new exit (range 16) 100 | -11/Scrapyard | Entered Materials 200 | -10/Materials | Discovered new exit (range 16) 224 | -10/Materials | Entered Mines 249 | -10/Mines | Met a Derelict bent on vengeance 310 | -10/Mines | Build established: Mutant 518 | -10/Mines | Learned Materials trap positions 562 | -10/Mines | Discovered new exit (range 5) 675 | -10/Mines | Discovered new exit (range 9) 899 | -10/Mines | Discovered new exit (range 4) 1016 | -10/Mines | Learned Materials emergency access door positions 1165 | -10/Mines | Entered Materials 1165 | -9/Materials | Evolved 2 slots: Propulsion x1, Utility x1 1166 | -9/Materials | Loaded intel: 19 trap records 1180 | -9/Materials | Identified exit to Mines 1180 | -9/Materials | Identified exit to Storage 1321 | -9/Materials | Destroyed 7 combat bots 1410 | -9/Materials | Discovered new exit (range 5) 1411 | -9/Materials | Entered another Materials area 1411 | -8/Materials | Evolved 2 slots: Propulsion x1, Utility x1 1670 | -8/Materials | Destroyed 7 combat bots 1677 | -8/Materials | Lost 6 parts (1p1n2u2w) 1714 | -8/Materials | Discovered new exit (range 16) 1719 | -8/Materials | Identified exit to Factory 1719 | -8/Materials | Entered Factory 1719 | -7/Factory | Evolved 2 slots: Power x1, Utility x1 1795 | -7/Factory | Identified exit to Lower Caves 1941 | -7/Factory | Discovered new exit (range 9) 1943 | -7/Factory | Identified exit to Factory 1943 | -7/Factory | Entered another Factory area 1943 | -6/Factory | Evolved 2 slots: Propulsion x1, Utility x1 2056 | -6/Factory | Identified exit to DSF 2096 | -6/Factory | Repaired Cesium-ion Thruster+? 2205 | -6/Factory | Fabricated R-10 Processor (x2) 2207 | -6/Factory | Discovered new exit (range 15) 2207 | -6/Factory | Spotted B-75 Beast 2211 | -6/Factory | Identified exit to Factory 2215 | -6/Factory | Entered another Factory area 2215 | -5/Factory | Evolved 2 slots: Utility x1, Weapon x1 2241 | -5/Factory | Lost 4 parts (1p1n2u) 2241 | -5/Factory | Identified exit to Upper Caves 2381 | -5/Factory | Repaired Imp. VTOL Module? 2437 | -5/Factory | Discovered new exit (range 6) 2439 | -5/Factory | Identified exit to Factory 2440 | -5/Factory | Entered another Factory area 2440 | -4/Factory | Evolved 2 slots: Propulsion x1, Utility x1 2524 | -4/Factory | Discovered new exit (range 20) 2537 | -4/Factory | Discovered new exit (range 11) 2537 | -4/Factory | Identified exit to Upper Caves 2540 | -4/Factory | Entered Upper Caves 2640 | -4/Upper Caves | Learned location of Testing (-3) 2661 | -4/Upper Caves | Build established: Hacker-Sprinter 2832 | -4/Upper Caves | Encountered a Warlord checkpoint 2834 | -4/Upper Caves | Discovered new exit (range 8) 2836 | -4/Upper Caves | Identified exit to Upper Caves 2845 | -4/Upper Caves | Learned location of 1 exit from Upper Caves 2870 | -4/Upper Caves | Entered another Upper Caves area 2871 | -4/Upper Caves | Identified exit to Research 2875 | -4/Upper Caves | Entered Research 2875 | -3/Research | Evolved 2 slots: Utility x2 2945 | -3/Research | Lost 5 parts (1p1n2u1w) 2984 | -3/Research | Repaired Thermic Laser 3015 | -3/Research | Found Prototype Device 3015 | -3/Research | Identified Exp. ECM Suite 3017 | -3/Research | Discovered new exit (range 10) 3019 | -3/Research | Identified exit to Testing 3020 | -3/Research | Entered Testing 3054 | -3/Testing | Found Prototype Energy Cannon 3054 | -3/Testing | Identified Potential Cannon 3073 | -3/Testing | Found Prototype Device 3073 | -3/Testing | Identified Exp. Thermal Shield 3081 | -3/Testing | Central database locked down 3177 | -3/Testing | System corruption reached 10% 3191 | -3/Testing | Lost 8 parts (2p3n1u2w) 3347 | -3/Testing | Lost 5 parts (1p2n2u) 3623 | -3/Testing | Released all parts (15) 3636 | -3/Testing | Lost 5 parts (2p2u1w) 3770 | -3/Testing | First assault squad dispatched 3869 | -3/Testing | Core integrity fell below 50% 3918 | -3/Testing | Lost 4 parts (1p3u) 3920 | -3/Testing | Discovered new exit (range 8) 3930 | -3/Testing | Build established: Mutant 3930 | -3/Testing | Entered Research 3930 | -2/Research | Evolved 2 slots: Power x1, Weapon x1 4366 | -2/Research | System corruption reached 10% 4406 | -2/Research | Garrison activated, responded to threat 4418 | -2/Research | Lost 13 parts (3p5n2u3w) 4528 | -2/Research | System corruption reached 30% 4561 | -2/Research | Found Quantum Capacitor 4565 | -2/Research | Found Quantum Capacitor 4653 | -2/Research | Garrison activated, responded to threat 4770 | -2/Research | Lost 13 parts (1p4n3u5w) 4835 | -2/Research | Core integrity fell below 50% 4865 | -2/Research | Lost 7 parts (3p1n3w) 4877 | -2/Research | Found Fusion Bomb Launcher 4884 | -2/Research | Spotted B-90 Cyclops 4889 | -2/Research | Core integrity fell below 20% 4899 | -2/Research | Destroyed by P-80 Master with Gamma Rifle Last Messages --------------- 04839_ System corrupted: Matter fused (-9). 04849_ P-80 Master resets W-44 Eye, system corruption cleaned. 04856_ Connecting with Terminal... 04870_ System corrupted: Component data lost. 04877_ Acquired Fusion Bomb Launcher. 04882_ K-01 Serf cleans the Field Manipulator. 04882_ Adv. Recalibrator destroyed. 04885_ Terminal disabled. 04885_ K-01 Serf cleans the Field Manipulator. 04886_ System corrupted: Component data lost. 04887_ The unstable cave ceiling collapses. 04889_ ALERT: Potential suspicious activity detected, Programmers report to Research Zone 6K. 04890_ Acquired Gyrokinetic Inverter. 04894_ U-05 Engineer lays Concrete. 04895_ U-05 Engineer builds a Wall. 04896_ The unstable cave ceiling collapses. 04897_ Critical hit (Meltdown: +370). Map ----- +----------------------------------------------------+ | ????????????????????????????# #????# ] #??# | | ????????????????????????????# #????# #??# | | ????????????????????????????# #????# #??# | | ???????????????????????????###+###???# #??? | | ???????????????????????????# #????? ???# | | ???????????????????????????# ########+###### | | ???????????????????????????# + | | ?????????????????###+####### ####### ## | | ?????????????????# # ## #?????# ## | | ??????????????#### # ##????# ## | | ??????????????+ ^# # ######## ## | | ?????????????????# + ## | | ?????????????????# ## ## | | ???????????????????# ## ## | | ???????????????????# # # ## ## | | ????????????######## ]] #? ## #? | | ????????????# # p] #? ## #? | | ????????????# # ] ####+###### #? | | ????????????# # #### #? | | ????????????# + p ? | | ????????????# ## ? | | ????????????# #; u ?? | | ????????????######### k ??????? | | ????????????????????# """ ""???????? | | ????????????????????# " """" "????????? | | ????????????????????#"T@ """" "????????? | | ????????????????????#"" """?? ????????? | | ????????????????????# ??????????? | | ??????????????????? ????????? | | ?????????????????? ?????????? | | ?????????????????# #####+########;BB# ?????????? | | ?????????????????# ??????????????? B#??????????? | | ?????????????????#?????????????????##??????????? | | ???????????????????????????????????????????????? | | ???????????????????????????????????????????????? | | ???????????????????????????????????????????????? | | ???????????????????????????????????????????????? | | ???????????????????????????????????????????????? | | ???????????????????????????????????????????????? | | ???????????????????????????????????????????????? | | ???????????????????????????????????????????????? | | ???????????????????????????????????????????????? | | ???????????????????????????????????????????????? | | ???????????????????????????????????????????????? | | ???????????????????????????????????????????????? | | ???????????????????????????????????????????????? | | ???????????????????????????????????????????????? | | ???????????????????????????????????????????????? | | ???????????????????????????????????????????????? | | ???????????????????????????????????????????????? | +----------------------------------------------------+ Best States ------------- Heat Dissipation 87 Energy Generation 65 Energy Capacity 1285 Matter Stores 300 Matter Capacity 300 Sight Range 20 Robot Scan Range 16 Terrain Scan Range 16 Terrain Scan Density 10 ECM Strength 3 Power Amplification 30 Additional Mass Support 9 Base Temperature (-) 200 Armor Coverage 225 Point Defense Rating 240 Evasion (%) 65 Targeting Accuracy 8 Melee Accuracy 8 Target Analysis 12 Recoil Reduction 4 Offensive Hacking 20 Defensive Hacking 20 Item Schematics ----------------- Cld. Phase Gun | -3/Testing | Archive Prc. Energy Filter | -3/Testing | Archive Robot Schematics ------------------ A-15 Conveyor | -3/Testing | Archive Fabricated ------------ R-10 Processor | x2 | -6/Factory | Preloaded Repaired ---------- Cesium-ion Thruster | 16% | -6/Factory Imp. VTOL Module | 2% | -5/Factory Thermic Laser | 3% | -3/Research Studied --------- Flight Unit | -8/Materials | Hacked Lgt. Deuterium Engine | -8/Materials | Hacked Cesium-ion Thruster | -7/Factory | Hacked Lgt. Nuclear Core | -7/Factory | Hacked Mic. Nuclear Core | -5/Factory | Hacked Nuclear Pulse Array | -3/Testing | Hacked Xenon Bombardment Thruster | -3/Testing | Hacked Alien Tech Used ----------------- None Achievements -------------- Hard Hitter Max Potential Ooh, Shiny! Challenges ------------ None Game ------ Seed WardroneNovaGutpuncher Manual? 0 Play Time 02:13:36 Cumulative 45.3 hours Start 2026.04.03 @ 07:41:40 End 2026.04.03 @ 10:11:51 Sessions 3 Manual Loads 0 Difficulty Rogue Special Mode None Game No. 37 Rogue 37 Adventurer 0 Explorer 0 Win Type - Total 1 Types 1/0/0/0/0/0/0/0/0/0 Lore% 22 Gallery% 36 Achievement% 28 Wizard Run 0 Options --------- Layout 1 ASCII 0 Keyboard 0 Movement Mouse Keybinds 0 Fullscreen 1 Font 24/Smallcaps Map View 50x35 Zoom Use 0% Tactical HUD 1 Map Filters NONE Filters NONE Steam 1 RUN: b2a649a9-9267-41f8-b6c6-618204dc5d80